bitfinex-derivatives/quotes_BTCF0:USTF0_20250608
["timestamp","ask_amount","ask_price","bid_price","bid_amount"]
[1749386172595,1.0567884,105590.0,105580.0,0.10634011]
[1749386172895,1.0240884,105590.0,105580.0,0.17324011]
[1749386173098,1.0240884,105590.0,105580.0,0.36257641]
[1749386173491,1.09958499,105590.0,105580.0,0.36257641]
[1749386173695,1.09958499,105590.0,105580.0,0.36257541]
[1749386173894,0.5523184,105590.0,105580.0,0.39205107]
[1749386174401,0.5521184,105590.0,105580.0,0.39205107]
[1749386174601,0.5523184,105590.0,105580.0,0.39205107]
[1749386175701,1.0242884,105590.0,105580.0,0.1063457]
[1749386175899,1.1231884,105590.0,105580.0,0.1063457]
[1749386179394,1.6712284,105590.0,105580.0,0.11979883]
[1749386179591,1.8606524,105590.0,105580.0,0.11979883]
[1749386179895,1.86470118,105590.0,105580.0,0.11979883]
[1749386180093,1.87406425,105590.0,105580.0,0.11979883]
[1749386180299,1.86470118,105590.0,105580.0,0.11979883]
[1749386180499,1.86470118,105590.0,105580.0,0.1063457]
[1749386180694,1.8606524,105590.0,105580.0,0.1063457]
[1749386181405,1.8606524,105590.0,105580.0,0.11979789]
[1749386181701,1.6712284,105590.0,105580.0,0.0769136]
[1749386182302,1.6712284,105590.0,105580.0,0.09043721]
[1749386182800,1.6712284,105590.0,105580.0,0.09054765]
[1749386183505,1.6712284,105590.0,105580.0,0.09055006]
[1749386183699,1.6712284,105590.0,105580.0,0.0769136]
[1749386183903,1.6712284,105590.0,105580.0,0.08955081]
[1749386184610,1.6808494,105590.0,105580.0,0.08954754]
[1749386185112,1.6808494,105590.0,105580.0,0.0759136]
[1749386185611,1.6808494,105590.0,105580.0,0.12007659]
[1749386186811,1.3200494,105590.0,105580.0,0.12007659]
[1749386187014,2.0416494,105590.0,105580.0,0.12007659]
[1749386187205,2.0416494,105590.0,105580.0,0.1337802]
[1749386187406,2.0416494,105590.0,105580.0,0.13378023]
[1749386187908,2.0416494,105590.0,105580.0,0.12007659]
[1749386188208,2.0416494,105590.0,105580.0,0.08961561]
[1749386188515,2.0416494,105590.0,105580.0,0.08961872]
[1749386188812,2.0416494,105590.0,105580.0,0.08961796]
[1749386189013,2.0416494,105590.0,105580.0,0.13378167]
[1749386189508,2.0416494,105590.0,105580.0,0.13378618]
[1749386189717,2.2310734,105590.0,105580.0,0.08961796]
[1749386189911,0.1893361,105580.0,105570.0,0.0883457]
[1749386190212,1.10575689,105580.0,105570.0,0.0883457]
[1749386191010,1.10575689,105580.0,105570.0,0.09239448]
[1749386191617,1.10675689,105580.0,105570.0,0.09839448]
[1749386192017,1.10775689,105580.0,105570.0,0.1013457]
[1749386194910,1.10775689,105580.0,105570.0,0.10539448]
[1749386196218,1.10775689,105580.0,105570.0,0.13719448]
[1749386197321,1.10775689,105580.0,105570.0,0.04884878]
[1749386197515,1.07475689,105580.0,105570.0,0.04884878]
[1749386197715,1.07475689,105580.0,105570.0,0.08284878]
[1749386201222,1.07475689,105580.0,105570.0,0.20066455]
[1749386201416,1.07475689,105580.0,105570.0,0.08284878]
[1749386201619,1.07475689,105580.0,105570.0,0.00404878]
[1749386201818,1.10805689,105580.0,105570.0,0.00404878]
[1749386202114,1.10805689,105580.0,105570.0,0.01775721]
[1749386202320,1.10805689,105580.0,105570.0,0.13557298]
[1749386203022,1.10805689,105580.0,105570.0,0.13557416]
[1749386203323,1.10805689,105580.0,105570.0,0.12186455]
[1749386203927,1.11805689,105580.0,105570.0,0.1355742]
[1749386204122,1.11805689,105580.0,105570.0,0.1693742]
[1749386205025,1.11805689,105580.0,105550.0,0.77207609]
[1749386205026,0.189372,105560.0,105550.0,0.77207609]
[1749386205226,0.56754138,105560.0,105550.0,1.06226709]
[1749386206228,0.56854138,105560.0,105550.0,0.87271609]
[1749386206920,0.56954138,105560.0,105550.0,0.87271609]
[1749386207321,0.56954138,105560.0,105550.0,0.88629787]
[1749386207623,0.56954138,105560.0,105550.0,0.81120117]
[1749386208029,0.56954138,105560.0,105550.0,0.79761939]
[1749386208227,0.56954138,105560.0,105550.0,0.81120057]
[1749386208423,0.56954138,105560.0,105550.0,0.79761939]
[1749386208632,0.56954138,105560.0,105550.0,0.81120058]
[1749386209429,0.56954138,105560.0,105550.0,0.81120558]
[1749386209830,0.56954138,105560.0,105550.0,0.81120559]
[1749386210126,0.56954138,105560.0,105550.0,0.81525437]
[1749386210427,0.56954138,105560.0,105550.0,0.99105807]
[1749386210633,0.56954138,105560.0,105550.0,1.0046483]
[1749386210826,0.56974138,105560.0,105550.0,1.0046483]
[1749386211032,0.56974138,105560.0,105550.0,0.99105807]
[1749386211227,0.56974138,105560.0,105550.0,0.84323868]
[1749386211931,0.56974138,105560.0,105550.0,0.99117086]
[1749386212733,0.20894138,105560.0,105550.0,0.99117086]
[1749386212932,0.56974138,105560.0,105550.0,0.99117086]
[1749386214527,0.56974138,105560.0,105550.0,1.04993336]
[1749386215636,0.38036938,105560.0,105550.0,1.04993336]
[1749386215940,0.01936938,105560.0,105550.0,1.64351068]
[1749386216143,0.01956938,105560.0,105550.0,1.64351068]
[1749386217333,0.56748689,105580.0,105570.0,0.1893541]
[1749386217542,0.56748689,105580.0,105570.0,0.94456423]
[1749386217841,0.56748689,105580.0,105570.0,1.01176423]
[1749386218645,0.57048689,105580.0,105570.0,0.8047941]
[1749386218944,0.57348689,105580.0,105570.0,0.8047941]
[1749386219643,0.57348689,105580.0,105570.0,0.95251815]
[1749386220543,0.57348689,105580.0,105570.0,0.98551815]
[1749386220940,0.02335079,105580.0,105570.0,1.38192828]
[1749386221136,0.02335079,105580.0,105570.0,1.84500423]
[1749386221539,0.02355079,105580.0,105570.0,1.84500423]
[1749386221845,0.02355079,105580.0,105570.0,2.27464423]
[1749386222042,0.02355079,105580.0,105570.0,2.29394746]
[1749386222433,0.02335079,105580.0,105570.0,2.29394746]
[1749386222639,0.02355079,105580.0,105570.0,2.29394746]
[1749386225346,0.02355079,105580.0,105570.0,2.04394746]
[1749386225548,0.02355079,105580.0,105570.0,1.84102611]
[1749386226641,0.0002,105580.0,105570.0,2.09102611]
[1749386226842,0.00014246,105590.0,105580.0,0.1893372]
[1749386227147,0.00014246,105590.0,105580.0,0.4023707]
[1749386227648,0.55026066,105590.0,105580.0,0.8023972]
[1749386227845,0.55026066,105590.0,105580.0,0.8025172]
[1749386228241,0.55426066,105590.0,105580.0,0.8025172]
[1749386228442,0.55826066,105590.0,105580.0,0.8025172]
[1749386238248,0.19746066,105590.0,105580.0,0.8025172]
[1749386238454,0.55826066,105590.0,105580.0,0.8025172]
[1749386240746,0.55826066,105590.0,105580.0,0.80656598]
[1749386241758,0.55826066,105590.0,105580.0,0.95389948]
[1749386243561,0.59156066,105590.0,105580.0,0.95389948]
[1749386245368,0.23076066,105590.0,105580.0,0.95389948]
[1749386245664,0.59156066,105590.0,105580.0,0.95389948]
[1749386249474,0.59156066,105590.0,105580.0,0.95446598]
[1749386249675,0.59156066,105590.0,105580.0,0.80656598]
[1749386250272,0.40224246,105590.0,105580.0,0.80656598]
[1749386250472,0.00814246,105590.0,105580.0,0.80656598]
[1749386255277,0.00814246,105590.0,105580.0,0.84006598]
[1749386258881,0.00814246,105590.0,105580.0,1.04713591]
[1749386259982,0.00834246,105590.0,105580.0,1.04713591]
[1749386261482,0.00834246,105590.0,105580.0,1.40793591]
[1749386261874,0.00814246,105590.0,105580.0,1.40793591]
[1749386262079,0.00834246,105590.0,105580.0,1.40793591]
[1749386262575,0.00834246,105590.0,105580.0,1.20086598]
[1749386263181,0.00834246,105590.0,105580.0,1.40789315]
[1749386263584,0.00834246,105590.0,105580.0,1.20086598]
[1749386264183,1e-08,105590.0,105580.0,1.20086598]
[1749386264385,0.0177019,105600.0,105590.0,0.1893182]
[1749386264584,0.0177019,105600.0,105590.0,0.63742839]
[1749386265178,0.0177019,105600.0,105590.0,0.932922]
[1749386265893,0.0179019,105600.0,105590.0,0.63742839]
[1749386266285,0.0219019,105600.0,105590.0,0.63842839]
[1749386267091,0.0249019,105600.0,105590.0,0.71690237]
[1749386267893,0.0249019,105600.0,105590.0,0.92361022]
[1749386268990,0.0072,105600.0,105590.0,0.92361022]
[1749386270191,0.0072,105600.0,105590.0,0.927659]
[1749386274094,0.0072,105600.0,105590.0,0.566859]
[1749386274391,0.0072,105600.0,105590.0,0.927659]
[1749386275489,0.0072,105600.0,105590.0,0.961859]
[1749386277101,0.00014246,105610.0,105600.0,0.1893002]
[1749386277291,0.47211246,105610.0,105600.0,1.39868805]
[1749386278298,0.47611246,105610.0,105600.0,1.39968805]
[1749386278800,0.48011246,105610.0,105600.0,1.40068805]
[1749386280300,0.48011246,105610.0,105600.0,1.41002499]
[1749386281207,0.48011246,105610.0,105600.0,1.83950499]
[1749386282297,0.48011246,105610.0,105600.0,1.63279714]
[1749386283108,0.035,105620.0,105610.0,0.1892823]
[1749386283313,0.44691433,105630.0,105620.0,0.1892643]
[1749386283603,0.55808433,105630.0,105620.0,0.7636043]
[1749386283806,0.52388433,105630.0,105620.0,0.7959043]
[1749386284109,0.52388433,105630.0,105620.0,1.00261215]
[1749386284407,0.55648433,105630.0,105620.0,1.00261215]
[1749386284706,0.55668433,105630.0,105620.0,1.00261215]
[1749386284900,0.56268433,105630.0,105620.0,1.00361215]
[1749386285104,0.56268433,105630.0,105620.0,0.7969043]
[1749386285399,0.56068433,105630.0,105620.0,0.7969043]
[1749386285604,0.56568433,105630.0,105620.0,0.7979043]
[1749386286207,0.56568433,105630.0,105620.0,0.94531696]
[1749386286504,0.59978433,105630.0,105620.0,0.94531696]
[1749386288898,0.05931433,105630.0,105620.0,0.94531696]
[1749386289099,0.05931433,105630.0,105620.0,0.97881696]
[1749386289701,0.05951433,105630.0,105620.0,0.97881696]
[1749386290202,0.05951433,105630.0,105620.0,1.03811215]
[1749386290406,0.72053073,105630.0,105620.0,0.49647215]
[1749386290608,0.78623073,105630.0,105620.0,0.93905215]
[1749386291199,0.59698433,105630.0,105620.0,0.93905215]
[1749386291399,0.59698433,105630.0,105620.0,0.7323443]
[1749386299807,0.59698433,105630.0,105620.0,0.8798344]
[1749386300712,0.59698433,105630.0,105620.0,0.88388318]
[1749386305308,0.59698433,105630.0,105620.0,0.73639308]
[1749386306010,0.59698433,105630.0,105620.0,0.77149308]
[1749386306414,0.59698433,105630.0,105620.0,0.97820093]
[1749386308412,0.53148433,105630.0,105620.0,1.04570093]
[1749386310317,0.56508433,105630.0,105620.0,1.04570093]
[1749386310720,0.59918433,105630.0,105620.0,1.04570093]
[1749386311215,0.59918433,105630.0,105620.0,0.83899308]
[1749386312019,0.59918433,105630.0,105620.0,1.04570093]
[1749386312322,0.53148433,105630.0,105620.0,1.04570093]
[1749386314722,0.59738433,105630.0,105620.0,1.04570093]
[1749386316326,0.59738433,105630.0,105620.0,1.04374093]
[1749386318314,0.56448433,105630.0,105620.0,1.04374093]
[1749386318518,0.49888433,105630.0,105620.0,1.04374093]
[1749386321628,0.49288433,105630.0,105620.0,1.04174093]
[1749386324937,0.49268433,105630.0,105620.0,1.04174093]
[1749386325124,0.49288433,105630.0,105620.0,1.04174093]
[1749386325734,0.49288433,105630.0,105620.0,0.83503308]
[1749386326554,0.49288433,105630.0,105620.0,1.19583308]
[1749386326854,0.00014246,105640.0,105630.0,0.1892465]
[1749386327044,0.47197,105640.0,105630.0,0.99767124]
[1749386327242,0.47197,105640.0,105630.0,1.01640259]
[1749386327448,0.47217,105640.0,105630.0,1.01640259]
[1749386328245,0.47617,105640.0,105630.0,1.01640259]
[1749386328449,0.47597,105640.0,105630.0,1.01640259]
[1749386328654,0.47617,105640.0,105630.0,1.01640259]
[1749386329254,0.47617,105640.0,105630.0,0.80940405]
[1749386331956,0.47617,105640.0,105630.0,1.0161156]
[1749386333446,0.47597,105640.0,105630.0,1.0161156]
[1749386333649,0.25435678,105640.0,105630.0,1.0161156]
[1749386333953,0.25435678,105640.0,105630.0,1.10489766]
[1749386334258,0.0002,105640.0,105630.0,1.10489766]
[1749386334755,0.0002,105640.0,105630.0,0.80940405]
[1749386334955,0.0002,105640.0,105630.0,1.01604123]
[1749386341058,0.0002,105640.0,105630.0,0.80940405]
[1749386341458,0.0002,105640.0,105630.0,1.01604123]
[1749386341660,0.25435678,105640.0,105630.0,1.51908123]
[1749386341964,0.80438628,105640.0,105630.0,0.46192273]
[1749386342162,0.90498628,105640.0,105630.0,0.89216658]
[1749386342860,0.35495678,105640.0,105630.0,0.89216658]
[1749386343060,0.90498538,105640.0,105630.0,0.89216658]
[1749386344467,0.71575678,105640.0,105630.0,0.35552658]
[1749386344759,0.28715678,105640.0,105630.0,0.92648658]
[1749386344961,0.28715678,105640.0,105630.0,0.99358658]
[1749386345163,0.47638538,105640.0,105630.0,0.89424658]
[1749386345360,0.54508538,105640.0,105630.0,0.16627918]
[1749386345559,0.54508538,105640.0,105630.0,0.89420568]
[1749386345762,0.90588538,105640.0,105630.0,0.35552568]
[1749386345963,0.90588538,105640.0,105630.0,0.89428568]
[1749386350165,0.71665678,105640.0,105630.0,0.89428568]
[1749386350366,0.90588538,105640.0,105630.0,0.89428568]
[1749386351361,0.90588538,105640.0,105630.0,0.35552568]
[1749386351560,0.90588538,105640.0,105630.0,0.41461503]
[1749386351865,0.90588538,105640.0,105630.0,0.95305503]
[1749386352664,0.90588538,105640.0,105630.0,0.89405133]
[1749386355674,0.90588538,105640.0,105630.0,0.89373133]
[1749386356466,0.90993416,105640.0,105630.0,0.89373133]
[1749386356771,0.92753345,105640.0,105630.0,0.68563348]
[1749386356967,0.92753345,105640.0,105630.0,0.538]
[1749386357577,0.92753345,105640.0,105630.0,0.65609747]
[1749386358373,0.92753345,105640.0,105630.0,0.84534397]
[1749386359174,0.92753345,105640.0,105630.0,0.30734397]
[1749386359373,0.92753345,105640.0,105630.0,0.74358397]
[1749386360468,0.92753345,105640.0,105630.0,0.30734397]
[1749386360668,0.92753345,105640.0,105630.0,0.74346397]
[1749386360874,0.92753345,105640.0,105630.0,0.74354397]
[1749386361777,0.92753345,105640.0,105630.0,0.55429747]
[1749386361969,0.92753345,105640.0,105630.0,0.11809747]
[1749386362172,1.11686145,105640.0,105630.0,0.55421747]
[1749386363173,1.11686145,105640.0,105630.0,0.55425747]
[1749386364278,1.11686145,105640.0,105630.0,0.43616]
[1749386364679,1.11281267,105640.0,105630.0,0.43616]
[1749386365280,1.47361267,105640.0,105630.0,0.43616]
[1749386365880,1.47766145,105640.0,105630.0,0.43616]
[1749386368777,0.1892465,105630.0,105620.0,0.15329747]
[1749386368977,0.90720328,105630.0,105620.0,0.88056187]
[1749386369377,0.90720328,105630.0,105620.0,0.15329747]
[1749386369576,0.90720328,105630.0,105620.0,0.11809747]
[1749386369781,0.90720328,105630.0,105620.0,0.65605747]
[1749386370176,0.90720328,105630.0,105620.0,0.65705747]
[1749386370475,0.90720328,105630.0,105620.0,0.65905747]
[1749386374384,0.90720328,105630.0,105620.0,0.69505747]
[1749386374783,0.91125206,105630.0,105620.0,0.15709747]
[1749386374984,0.91125206,105630.0,105620.0,0.69465747]
[1749386377382,0.91125206,105630.0,105620.0,0.72775747]
[1749386377783,0.91125206,105630.0,105620.0,0.76045747]
[1749386378387,0.91125206,105630.0,105620.0,0.64236]
[1749386378688,0.87585206,105630.0,105620.0,0.7604344]
[1749386378888,0.87180328,105630.0,105620.0,0.7604344]
[1749386379087,0.87180328,105630.0,105620.0,0.64236]
[1749386379688,0.83940328,105630.0,105620.0,0.64236]
[1749386381390,0.83940328,105630.0,105620.0,0.1048]
[1749386381589,0.83940328,105630.0,105620.0,0.53964]
[1749386381986,0.80825206,105630.0,105620.0,0.1048]
[1749386382190,0.80825206,105630.0,105620.0,0.62143348]
[1749386382391,0.91035206,105630.0,105620.0,0.4738]
[1749386382591,0.91035206,105630.0,105620.0,0.59193252]
[1749386383597,0.91985107,105630.0,105620.0,0.59193252]
[1749386383788,0.91035206,105630.0,105620.0,0.15713252]
[1749386383984,0.91035206,105630.0,105620.0,0.59177252]
[1749386384890,0.91035206,105630.0,105620.0,0.12113252]
[1749386385096,0.91035206,105630.0,105620.0,0.55573252]
[1749386386496,0.91035206,105630.0,105620.0,0.55561252]
[1749386386999,0.91974352,105630.0,105620.0,0.55561252]
[1749386387487,0.91974352,105630.0,105620.0,0.74487692]
[1749386387688,0.91974352,105630.0,105620.0,0.62511252]
[1749386388081,0.91569474,105630.0,105620.0,0.62511252]
[1749386394500,0.91569474,105630.0,105620.0,0.19063252]
[1749386394701,0.1892644,105620.0,105610.0,0.04858758]
[1749386394903,0.92560554,105620.0,105610.0,0.00014246]
[1749386396407,0.92560554,105620.0,105610.0,0.00314246]
[1749386396899,0.92560554,105620.0,105610.0,0.00514246]
[1749386397502,0.92560554,105620.0,105610.0,0.09372318]
[1749386401204,0.92560554,105620.0,105610.0,0.00514246]
[1749386404212,0.56480554,105620.0,105610.0,0.00514246]
[1749386404504,1.28640554,105620.0,105610.0,0.00514246]
[1749386405405,1.29045432,105620.0,105610.0,0.00514246]
[1749386407110,1.29045432,105620.0,105610.0,0.03964246]
[1749386408210,1.29045432,105620.0,105610.0,0.07464246]
[1749386409311,0.56885432,105620.0,105610.0,0.07464246]
[1749386409511,1.28640554,105620.0,105610.0,0.07464246]
[1749386417216,0.56480554,105620.0,105610.0,0.07464246]
[1749386417514,1.28640554,105620.0,105610.0,0.07464246]
[1749386421816,1.29045432,105620.0,105610.0,0.07464246]
[1749386422621,1.28640554,105620.0,105610.0,0.07464246]
[1749386423307,1.28640554,105620.0,105610.0,0.19269426]
[1749386428224,0.92854876,105620.0,105610.0,0.38197656]
[1749386428411,0.92874876,105620.0,105610.0,0.44595824]
[1749386428810,0.92854876,105620.0,105610.0,0.44595824]
[1749386429120,0.92874876,105620.0,105610.0,0.44595824]
[1749386429521,0.92874876,105620.0,105610.0,0.50496194]
[1749386429725,0.57199754,105620.0,105610.0,0.50496194]
[1749386429908,0.57179754,105620.0,105610.0,0.50496194]
[1749386430113,0.57199754,105620.0,105610.0,0.50496194]
[1749386430724,0.56794876,105620.0,105610.0,0.50496194]
[1749386432122,0.56794876,105620.0,105610.0,0.65272797]
[1749386432425,0.56774876,105620.0,105610.0,0.44609079]
[1749386432617,0.56794876,105620.0,105610.0,0.44609079]
[1749386433123,0.56794876,105620.0,105610.0,0.25680849]
[1749386433316,0.56794876,105620.0,105610.0,0.44609079]
[1749386433517,0.56794876,105620.0,105610.0,0.25680849]
[1749386434014,0.57199754,105620.0,105610.0,0.25680849]
[1749386438627,0.57199754,105620.0,105610.0,0.44609079]
[1749386442125,0.56794876,105620.0,105610.0,0.54725079]
[1749386443028,0.57199754,105620.0,105610.0,0.54725079]
[1749386444131,0.56794876,105620.0,105610.0,0.54725079]
[1749386447834,0.56774876,105620.0,105610.0,0.54725079]
[1749386448035,0.56794876,105620.0,105610.0,0.54725079]
[1749386449026,0.56794876,105620.0,105610.0,0.60612194]
[1749386450132,0.56794876,105620.0,105610.0,0.7537885]
[1749386450337,0.56794876,105620.0,105610.0,0.54715132]
[1749386451340,0.56794876,105620.0,105610.0,0.39948476]
[1749386451543,0.56794876,105620.0,105610.0,0.54715758]
[1749386453039,0.57199754,105620.0,105610.0,0.54715758]
[1749386454145,0.56794876,105620.0,105610.0,0.54715758]
[1749386455246,0.57199754,105620.0,105610.0,0.54715758]
[1749386455844,0.21119754,105620.0,105610.0,0.54715758]
[1749386456043,0.57199754,105620.0,105610.0,0.54715758]
[1749386456245,0.56794876,105620.0,105610.0,0.54715758]
[1749386457148,0.57199754,105620.0,105610.0,0.54715758]
[1749386457849,0.57199754,105620.0,105610.0,0.39948476]
[1749386458047,0.57199754,105620.0,105610.0,0.54732147]
[1749386458748,0.57199754,105620.0,105610.0,0.39948476]
[1749386459250,0.56794876,105620.0,105610.0,0.54734869]
[1749386461559,0.56794876,105620.0,105610.0,0.39948476]
[1749386461950,0.56794876,105620.0,105610.0,0.54735087]
[1749386465849,0.56794876,105620.0,105610.0,0.39948476]
[1749386466051,0.56794876,105620.0,105610.0,0.60612194]
[1749386468353,0.57199754,105620.0,105610.0,0.60612194]
[1749386468855,0.57199754,105620.0,105610.0,1.04012194]
[1749386469151,0.57199754,105620.0,105610.0,1.04008194]
[1749386469350,0.67709754,105620.0,105610.0,1.04008194]
[1749386469858,0.93125432,105620.0,105610.0,0.83344476]
[1749386470957,0.93125432,105620.0,105610.0,0.98132527]
[1749386478058,0.57045432,105620.0,105610.0,0.98132527]
[1749386478260,0.93125432,105620.0,105610.0,0.98132527]
[1749386483961,0.86095432,105620.0,105610.0,0.98132527]
[1749386484572,0.85690554,105620.0,105610.0,0.98132527]
[1749386485174,0.82210554,105620.0,105610.0,0.98132527]
[1749386485370,0.82210554,105620.0,105610.0,0.83344476]
[1749386486567,0.82210554,105620.0,105610.0,1.04008194]
[1749386487969,0.82190554,105620.0,105610.0,1.04008194]
[1749386488164,0.82210554,105620.0,105610.0,1.04008194]
[1749386490773,0.82210554,105620.0,105610.0,0.83344476]
[1749386492070,0.46130554,105620.0,105610.0,0.83344476]
[1749386492374,0.82210554,105620.0,105610.0,0.83344476]
[1749386495782,0.82615432,105620.0,105610.0,0.83344476]
[1749386497079,0.82615432,105620.0,105610.0,0.98136413]
[1749386497680,0.82615432,105620.0,105610.0,0.98120413]
[1749386499483,0.82615432,105620.0,105610.0,0.34234413]
[1749386499682,0.93215432,105620.0,105610.0,0.87722413]
[1749386500385,0.93215432,105620.0,105610.0,0.91202413]
[1749386500686,0.93215432,105620.0,105610.0,0.18786183]
[1749386500981,0.93215432,105620.0,105610.0,0.62170732]
[1749386501175,0.93215432,105620.0,105610.0,0.58690732]
[1749386501580,0.93215432,105620.0,105610.0,0.43898246]
[1749386502286,0.93215432,105620.0,105610.0,0.7761892]
[1749386502886,0.93215432,105620.0,105610.0,0.62826476]
[1749386503088,0.93215432,105620.0,105610.0,0.7761907]
[1749386503387,0.93215432,105620.0,105610.0,0.62826476]
[1749386503690,0.93215432,105620.0,105610.0,0.77618769]
[1749386504187,0.93215432,105620.0,105610.0,0.62826476]
[1749386504389,0.93215432,105620.0,105610.0,0.43898246]
[1749386504781,0.93215432,105620.0,105610.0,0.62826486]
[1749386505084,0.93215432,105620.0,105610.0,0.77618555]
[1749386506682,0.67799754,105620.0,105610.0,0.77618555]
[1749386506884,0.93215432,105620.0,105610.0,0.77618555]
[1749386508990,0.93215432,105620.0,105610.0,0.58690315]
[1749386511386,0.93215432,105620.0,105610.0,0.77618545]
[1749386511587,0.93215432,105620.0,105610.0,0.58690315]
[1749386512887,0.67799754,105620.0,105610.0,0.15306315]
[1749386513090,0.93215432,105620.0,105610.0,0.58682315]
[1749386514193,0.93215432,105620.0,105610.0,0.77610545]
[1749386515195,0.93215432,105620.0,105610.0,0.62818476]
[1749386515393,0.93215432,105620.0,105610.0,0.58681403]
[1749386517296,0.91446996,105620.0,105610.0,0.58681403]
[1749386517796,0.9320134,105620.0,105610.0,0.58681403]
[1749386519799,0.9320134,105620.0,105610.0,0.62121403]
[1749386520099,0.92796462,105620.0,105610.0,0.62121403]
[1749386521196,0.9320134,105620.0,105610.0,0.18745403]
[1749386521401,0.9320134,105620.0,105610.0,0.62117403]
[1749386522497,0.9320134,105620.0,105610.0,0.58677403]
[1749386523196,0.9320134,105620.0,105610.0,0.43886246]
[1749386523591,0.9320134,105620.0,105610.0,0.64549964]
[1749386524309,0.9320134,105620.0,105610.0,0.83478194]
[1749386524495,0.9320134,105620.0,105610.0,0.98268864]
[1749386524695,0.9320134,105620.0,105610.0,0.62814476]
[1749386525102,0.9320134,105620.0,105610.0,0.83478194]
[1749386525308,0.9320134,105620.0,105610.0,0.68109964]
[1749386525705,0.9320134,105620.0,105610.0,0.47446246]
[1749386527006,0.9320134,105620.0,105610.0,0.62236501]
[1749386530104,0.9320134,105620.0,105610.0,0.65596501]
[1749386531400,0.92796462,105620.0,105610.0,0.65596501]
[1749386532509,0.9320134,105620.0,105610.0,0.65596501]
[1749386533305,0.9320134,105620.0,105610.0,0.69116501]
[1749386535705,0.1892824,105610.0,105600.0,0.65908968]
[1749386535906,0.84053918,105610.0,105600.0,0.65908968]
[1749386536210,0.90733918,105610.0,105600.0,0.80701482]
[1749386536410,0.90733918,105610.0,105600.0,0.63577764]
[1749386537013,0.90733918,105610.0,105600.0,0.63977764]
[1749386537306,0.90733918,105610.0,105600.0,0.4958525]
[1749386537718,0.90733918,105610.0,105600.0,0.5314525]
[1749386538713,0.90733918,105610.0,105600.0,0.64965589]
[1749386538914,0.90733918,105610.0,105600.0,0.63088339]
[1749386539311,0.84053918,105610.0,105600.0,0.7019803]
[1749386539514,0.80423918,105610.0,105600.0,0.7380803]
[1749386540014,0.80423918,105610.0,105600.0,0.85626252]
[1749386541715,0.80423918,105610.0,105600.0,0.7380803]
[1749386543814,0.80423918,105610.0,105600.0,0.88600544]
[1749386544220,0.80443918,105610.0,105600.0,0.88600544]
[1749386545113,0.80443918,105610.0,105600.0,0.94471748]
[1749386546413,0.361,105610.0,105600.0,0.94471748]
[1749386546620,0.5502823,105610.0,105600.0,0.7380803]
[1749386546817,0.5500823,105610.0,105600.0,0.94471748]
[1749386547018,0.5502823,105610.0,105600.0,0.94471748]
[1749386547821,0.5502823,105610.0,105600.0,0.88574596]
[1749386549721,0.55433108,105610.0,105600.0,0.88574596]
[1749386553321,0.55433108,105610.0,105600.0,0.7380803]
[1749386553819,0.55433108,105610.0,105600.0,0.88574596]
[1749386555527,0.55433108,105610.0,105600.0,0.7380803]
[1749386555828,0.55433108,105610.0,105600.0,0.88577818]
[1749386557826,0.55433108,105610.0,105600.0,0.7380803]
[1749386559628,0.55433108,105610.0,105600.0,0.88579462]
[1749386560628,0.55433108,105610.0,105600.0,0.98667462]
[1749386563633,0.55433108,105610.0,105600.0,1.04559748]
[1749386565831,0.5502823,105610.0,105600.0,1.04559748]
[1749386566830,0.55433108,105610.0,105600.0,1.04559748]
[1749386567832,0.80848786,105610.0,105600.0,0.8389603]
[1749386568835,0.80443908,105610.0,105600.0,0.98674612]
[1749386570129,0.80443908,105610.0,105600.0,0.98675975]
[1749386570340,0.80443908,105610.0,105600.0,0.8389603]
[1749386578639,0.80443908,105610.0,105600.0,1.04559748]
[1749386579336,0.80443908,105610.0,105600.0,0.8389603]
[1749386580734,0.80443908,105610.0,105600.0,1.04559748]
[1749386582241,0.80443908,105610.0,105600.0,0.8389603]
[1749386587744,0.80443908,105610.0,105600.0,1.04559748]
[1749386588135,0.61515678,105610.0,105600.0,1.04559748]
[1749386588442,0.80443908,105610.0,105600.0,0.8389603]
[1749386588742,0.80443908,105610.0,105600.0,1.04559748]
[1749386590042,0.80443908,105610.0,105600.0,0.8389603]
[1749386590647,0.61515678,105610.0,105600.0,0.8389603]
[1749386591145,0.61515678,105610.0,105600.0,1.04559748]
[1749386592245,0.0002,105610.0,105600.0,0.8389603]
[1749386592543,1.01403148,105620.0,105610.0,0.1892823]
[1749386592747,1.26818826,105620.0,105610.0,0.4052006]
[1749386593752,1.26818826,105620.0,105610.0,0.4072006]
[1749386594353,1.26818826,105620.0,105610.0,0.4092006]
[1749386596252,1.17355156,105620.0,105610.0,0.4092006]
[1749386596453,1.17355156,105620.0,105610.0,0.46791948]
[1749386597154,0.98428026,105620.0,105610.0,0.46791948]
[1749386597350,0.655651,105620.0,105610.0,0.50331948]
[1749386597656,0.655651,105620.0,105610.0,0.2966823]
[1749386598648,0.655651,105620.0,105610.0,0.50363833]
[1749386598848,0.8449154,105620.0,105610.0,0.50363833]
[1749386599043,0.8449154,105620.0,105610.0,0.2966823]
[1749386599854,0.655651,105620.0,105610.0,0.59217591]
[1749386600051,0.655651,105620.0,105610.0,0.79909672]
[1749386600462,0.655651,105620.0,105610.0,0.50360311]
[1749386602857,0.655451,105620.0,105610.0,0.50360311]
[1749386603062,0.655451,105620.0,105610.0,0.2966823]
[1749386603262,0.655651,105620.0,105610.0,0.2966823]
[1749386603868,0.655651,105620.0,105610.0,0.50351118]
[1749386605170,0.294851,105620.0,105610.0,0.86431118]
[1749386605374,0.5973439,105640.0,105630.0,0.1892465]
[1749386605675,0.97087341,105640.0,105630.0,0.82939538]
[1749386606169,0.97107341,105640.0,105630.0,0.82939538]
[1749386606670,0.97107341,105640.0,105630.0,0.77018836]
[1749386607170,0.97307341,105640.0,105630.0,0.77018836]
[1749386607571,0.97307341,105640.0,105630.0,0.77959304]
[1749386607865,0.97507341,105640.0,105630.0,0.77959304]
[1749386613174,0.97507341,105640.0,105630.0,0.63197118]
[1749386614176,0.97507341,105640.0,105630.0,0.6225665]
[1749386614674,0.97507341,105640.0,105630.0,0.77018836]
[1749386615976,0.97507341,105640.0,105630.0,0.6225665]
[1749386616473,0.97507341,105640.0,105630.0,0.58094186]
[1749386616672,0.97507341,105640.0,105630.0,0.77018836]
[1749386616976,0.97507341,105640.0,105630.0,0.55119945]
[1749386617677,0.97507341,105640.0,105630.0,0.58082186]
[1749386618172,0.97507341,105640.0,105630.0,0.2656422]
[1749386618365,0.97507341,105640.0,105630.0,0.11802034]
[1749386618772,1.59760141,105640.0,105630.0,0.11802034]
[1749386619776,1.59760141,105640.0,105630.0,0.08853526]
[1749386620778,1.69832141,105640.0,105630.0,0.08853526]
[1749386623170,1.69832141,105640.0,105630.0,0.1475672]
[1749386623585,1.50899341,105640.0,105630.0,0.14756714]
[1749386625982,1.69832141,105640.0,105630.0,0.14756714]
[1749386626383,0.1892465,105630.0,105620.0,0.00014246]
[1749386626587,0.87660328,105630.0,105620.0,0.00014246]
[1749386630582,1.23740328,105630.0,105620.0,0.00014246]
[1749386630783,1.27270328,105630.0,105620.0,0.00014246]
[1749386631582,1.27270328,105630.0,105610.0,0.11802034]